bitfinex/quotes_ETHUSD_20241122
["timestamp","ask_amount","ask_price","bid_price","bid_amount"]
[1732249766778,0.02930192,3414.3,3413.4,0.2932]
[1732249767091,0.1508554,3414.4,3413.4,0.64879154]
[1732249767259,0.1508554,3414.4,3413.5,0.35559154]
[1732249767598,0.1508554,3414.4,3413.6,1.03072053]
[1732249767815,0.1508554,3414.4,3413.6,0.6852915]
[1732249767942,0.1508554,3414.4,3413.7,0.37725821]
[1732249768144,0.85640192,3414.3,3413.3,0.2932]
[1732249768380,0.85640192,3414.3,3413.3,0.2432]
[1732249768589,0.8271,3414.3,3413.3,0.2432]
[1732249768793,0.1508554,3414.4,3413.4,1.2557504]
[1732249769287,0.1508554,3414.4,3413.6,0.1932]
[1732249769597,0.1508554,3414.4,3413.8,0.1932]
[1732249769762,0.1508554,3414.4,3413.9,0.91588724]
[1732249770268,0.02930192,3414.3,3413.4,0.656]
[1732249770475,0.1508554,3414.4,3413.4,0.656]
[1732249770785,0.1508554,3414.4,3413.0,1.17102903]
[1732249770786,0.8271,3414.2,3413.0,1.17102903]
[1732249770986,0.02930192,3414.1,3412.6,0.8256]
[1732249771144,0.8271,3414.0,3412.3,0.8256]
[1732249771345,0.1508554,3414.4,3412.7,0.39818918]
[1732249771572,0.18015732,3414.4,3412.9,0.8256]
[1732249771756,0.18015732,3414.4,3413.0,0.78411821]
[1732249771959,0.18015732,3414.4,3413.1,0.2932]
[1732249772148,0.8271,3414.3,3413.2,0.2932]
[1732249772348,0.02930192,3414.2,3413.2,0.2932]
[1732249773255,0.02930192,3414.2,3412.8,0.2932]
[1732249773559,0.8271,3414.1,3412.3,0.2932]
[1732249773803,0.8271,3413.9,3412.3,0.6790957]
[1732249773967,0.85640192,3413.8,3412.3,0.6790957]
[1732249774153,0.85640192,3413.8,3412.5,0.2932]
[1732249775397,0.85640192,3413.8,3412.1,0.2932]
[1732249775696,0.8271,3413.8,3412.7,0.2932]
[1732249775865,0.8271,3413.8,3412.9,0.2932]
[1732249776196,0.02930192,3413.7,3412.9,0.2932]
[1732249776499,0.8271,3413.6,3412.9,0.2932]
[1732249776679,0.85640192,3413.5,3412.9,0.2932]
[1732249776867,0.8271,3413.5,3411.7,0.32250657]
[1732249777064,0.8271,3413.5,3412.1,0.2932]
[1732249777482,0.02930192,3413.4,3412.1,0.2932]
[1732249777884,0.8271,3413.3,3412.1,0.2932]
[1732249778088,0.8271,3413.3,3411.2,0.36155737]
[1732249778089,0.8271,3413.1,3412.2,0.2932]
[1732249778303,2.627,3414.0,3412.2,0.2932]
[1732249778596,0.33295954,3414.3,3412.2,0.2932]
[1732249778597,2.627,3413.8,3412.2,0.2932]
[1732249778766,0.55562,3413.7,3412.2,0.2932]
[1732249778969,2.617,3413.6,3412.2,0.2932]
[1732249779299,2.617,3413.6,3410.1,0.8256]
[1732249779300,2.92961,3413.5,3410.1,0.8256]
[1732249779454,2.627,3413.6,3410.2,0.02931732]
[1732249779455,3.172661,3413.4,3410.2,0.02931732]
[1732249779655,2.617,3413.4,3410.2,0.02931732]
[1732249780101,2.627,3413.4,3410.2,0.32251732]
[1732249780302,0.2627,3413.3,3410.2,0.2932]
[1732249781008,0.01,3412.7,3410.2,0.2932]
[1732249781158,0.01,3412.7,3409.6,0.8256]
[1732249781159,0.01,3412.5,3409.7,0.2932]
[1732249781361,0.8271,3412.4,3409.7,0.2932]
[1732249781560,0.8271,3412.4,3409.6,0.8256]
[1732249781789,0.8271,3412.4,3409.7,0.32252671]
[1732249782157,0.8271,3412.4,3409.8,1.1188]
[1732249782389,0.8271,3412.4,3409.9,0.02932033]
[1732249782762,0.8271,3412.4,3410.1,0.2932]
[1732249783187,0.8271,3412.4,3410.2,0.02931983]
[1732249783526,0.8271,3412.4,3410.4,0.2932]
[1732249783684,0.8271,3412.4,3410.6,0.2932]
[1732249783884,0.8271,3412.4,3410.7,0.02931348]
[1732249784083,0.8271,3412.4,3410.6,0.2932]
[1732249785144,0.8271,3412.4,3410.5,0.8368]
[1732249786828,0.8271,3412.4,3409.7,0.8368]
[1732249786997,0.8727,3412.2,3409.7,0.8368]
[1732249788126,2.7398,3412.1,3409.7,0.8368]
[1732249788321,2.7398,3412.1,3406.3,1.17496828]
[1732249788322,0.8727,3411.8,3409.5,0.8368]
[1732249788629,0.8727,3411.8,3409.9,0.8368]
[1732249788826,0.8727,3411.8,3410.1,0.8368]
[1732249789199,0.8727,3411.8,3410.2,0.32251832]
[1732249789414,0.8727,3411.8,3410.2,0.2932]
[1732249789791,0.8727,3411.8,3410.2,0.32251979]
[1732249790136,0.8727,3411.8,3410.2,0.2932]
[1732249790707,0.8727,3411.8,3410.7,0.2932]
[1732249791602,0.8727,3411.8,3410.2,0.32251956]
[1732249792230,0.8532,3412.2,3410.6,0.2932]
[1732249792443,0.8532,3412.2,3410.9,0.2932]
[1732249792746,0.8532,3413.6,3410.9,0.2932]
[1732249792949,0.8532,3413.6,3411.0,0.02931393]
[1732249793250,0.8532,3413.6,3410.9,0.2932]
[1732249793407,0.8532,3413.6,3411.0,0.32251145]
[1732249794431,0.8532,3413.6,3411.0,0.02931145]
[1732249794629,0.8532,3413.6,3411.1,0.02930418]
[1732249795446,0.8532,3413.6,3411.6,0.2932]
[1732249795651,0.8532,3414.3,3412.2,1.1741]
[1732249795852,0.8532,3414.3,3412.3,0.02929787]
[1732249797022,0.8532,3414.3,3413.0,3.0]
[1732249797353,1.0040554,3414.4,3413.2,0.8809]
[1732249798073,1.0040554,3414.4,3412.6,0.32249346]
[1732249798392,1.0040554,3414.4,3412.8,0.2932]
[1732249798683,1.0040554,3414.4,3412.8,0.32249798]
[1732249798893,1.0040554,3414.4,3412.9,0.02929518]
[1732249799046,1.0040554,3414.4,3412.8,0.2932]
[1732249799246,1.0040554,3414.4,3412.9,0.02929712]
[1732249799450,1.0040554,3414.4,3413.1,0.2932]
[1732249799643,0.1508554,3414.4,3413.3,1.1523]
[1732249799844,0.1508554,3414.4,3413.4,0.38164333]
[1732249800082,0.1508554,3414.4,3413.4,0.9899559]
[1732249800342,0.1508554,3414.4,3413.6,0.2932]
[1732249800581,0.9849554,3414.4,3413.5,0.8591]
[1732249801242,0.9849554,3414.4,3413.0,0.8591]
[1732249801446,0.9849554,3414.4,3413.1,0.02929356]
[1732249802395,0.9849554,3414.4,3413.0,0.8591]
[1732249802690,0.9849554,3414.4,3412.8,0.2932]
[1732249802896,0.9849554,3414.4,3412.9,0.02929599]
[1732249804197,0.9849554,3414.4,3413.5,0.2932]
[1732249804383,0.9849554,3414.4,3413.8,0.2932]
[1732249804708,0.1508554,3414.4,3413.8,0.2932]
[1732249804912,0.1508554,3414.4,3413.9,0.0292889]
[1732249805077,0.1508554,3414.4,3414.0,0.2932]
[1732249805258,0.1508554,3414.4,3414.0,0.64555584]
[1732249805456,0.1508554,3414.4,3414.1,0.02928649]
[1732249805656,0.1508554,3414.4,3414.3,0.2932]
[1732249805917,0.1508554,3414.4,3414.3,0.989951]
[1732249806201,0.005,3414.9,3414.4,0.66746841]
[1732249806414,0.005,3414.9,3414.4,0.69674892]
[1732249806559,0.005,3414.9,3414.5,0.8591]
[1732249806758,0.005,3414.9,3414.7,0.8591]
[1732249806973,0.016,3416.2,3414.8,1.57834103]
[1732249807193,0.016,3416.2,3414.9,0.8591]
[1732249807388,0.8501,3416.2,3415.0,0.3856257]
[1732249807664,0.8501,3416.2,3414.6,3.0]
[1732249807989,0.8501,3416.2,3414.6,3.02928422]
[1732249808167,0.8501,3416.2,3414.6,0.02928422]
[1732249808371,0.8341,3417.9,3414.8,0.8591]
[1732249808688,0.8341,3417.0,3415.0,0.8591]
[1732249808857,0.8341,3417.0,3415.2,0.8591]
[1732249809058,0.8341,3417.0,3415.4,0.8591]
[1732249809255,0.8341,3417.5,3415.6,0.8591]
[1732249809503,0.83903754,3418.0,3415.7,1.09178869]
[1732249809709,0.83903754,3418.0,3416.0,0.2932]
[1732249810007,0.83903754,3418.0,3415.1,0.01]
[1732249810008,0.83903754,3418.0,3416.2,0.2932]
[1732249810161,0.83903754,3418.0,3416.4,0.8591]
[1732249810547,0.83903754,3418.0,3416.4,1.92162495]
[1732249810659,0.83903754,3418.0,3416.5,0.02925709]
[1732249810862,0.83903754,3418.0,3416.5,1.45583675]
[1732249811058,0.83903754,3418.0,3416.5,0.69840903]
[1732249811373,0.8341,3417.7,3415.6,0.8591]
[1732249811910,0.8341,3417.7,3415.2,12.3391]
[1732249812071,0.8341,3417.7,3415.3,0.02927219]
[1732249812402,0.8341,3417.7,3415.3,0.43411754]
[1732249812560,0.8341,3417.7,3415.4,0.40484535]
[1732249812763,0.8341,3417.7,3415.5,0.02927086]
[1732249813213,0.8341,3417.7,3415.6,0.80621127]
[1732249813513,0.8341,3417.7,3415.7,0.02926943]
[1732249813721,0.8341,3417.7,3415.8,0.80621127]
[1732249814020,0.8341,3417.7,3415.9,0.02926764]
[1732249814168,0.005,3416.6,3416.0,0.40484535]
[1732249814573,0.005,3416.6,3416.1,0.9008]
[1732249814816,0.005,3416.6,3416.2,0.85464558]
[1732249817775,0.9077,3417.7,3416.2,1.76234558]
[1732249818183,0.00493754,3418.0,3416.3,0.9008]
[1732249818416,0.00493754,3418.0,3416.8,0.55]
[1732249818581,0.00493754,3418.0,3416.9,0.8950516]
[1732249818787,0.00493754,3418.0,3417.1,0.9008]
[1732249819000,0.00493754,3418.0,3417.2,1.44504965]
[1732249819326,0.9077,3419.2,3417.4,0.55]
[1732249819479,0.9077,3419.2,3418.1,0.2932]
[1732249819685,0.9077,3419.2,3418.3,0.2932]
[1732249819912,0.9077,3419.2,3418.5,0.2932]
[1732249820237,0.9077,3419.2,3417.4,0.55]
[1732249820238,0.9077,3419.2,3418.7,0.2932]
[1732249820392,0.9077,3419.2,3418.9,0.2932]
[1732249820631,0.9077,3419.2,3417.5,0.02924753]
[1732249820632,0.9077,3419.2,3419.0,1.44646416]
[1732249820830,0.8196,3419.8,3419.0,1.44646416]
[1732249821170,1.0396,3419.8,3419.0,1.44646416]
[1732249821376,0.22,3419.8,3419.1,0.99894691]
[1732249821707,0.8196,3419.7,3419.2,0.73323157]
[1732249821967,1.12356,3419.7,3419.4,0.55]
[1732249822173,0.8196,3419.7,3419.5,1.20027402]
[1732249822374,0.8196,3419.7,3419.6,0.55]
[1732249822556,0.8196,3419.7,3419.6,1.75027402]
[1732249822938,0.8196,3419.7,3419.6,1.20027402]
[1732249823161,1.10156,3419.7,3419.6,1.20027402]
[1732249823465,1.10156,3419.7,3418.2,0.36447138]
[1732249823466,1.10156,3419.7,3417.6,0.2932]
[1732249823627,0.8196,3419.6,3418.8,0.46704245]
[1732249823827,0.8196,3419.6,3418.7,0.2932]
[1732249824242,0.8196,3419.6,3417.1,0.9006]
[1732249824575,0.8196,3419.6,3417.5,0.46704245]
[1732249824875,0.8196,3419.6,3416.3,0.0292581]
[1732249824876,0.8196,3419.5,3417.0,0.46704245]
[1732249825081,0.8196,3419.3,3417.0,0.89956447]
[1732249825438,0.8196,3419.3,3417.1,0.0292591]
[1732249825768,0.8196,3419.3,3417.3,0.2932]
[1732249825973,0.8196,3419.3,3417.5,0.2932]
[1732249826143,0.8196,3419.3,3417.7,0.2932]
[1732249826342,0.8196,3419.3,3417.9,0.2932]
[1732249826545,0.8196,3419.3,3418.3,0.2932]
[1732249826746,0.8196,3419.3,3418.7,0.2932]
[1732249826945,0.8196,3419.3,3418.4,1.23417438]
[1732249826946,1.16356,3419.7,3419.1,0.2932]
[1732249827165,0.8816,3419.7,3419.2,1.79926447]
[1732249829458,0.5879,3419.7,3419.2,1.79926447]
[1732249830195,0.84669,3419.7,3419.2,1.79926447]
[1732249830422,0.5879,3419.7,3419.2,1.79926447]
[1732249831460,0.5879,3419.7,3419.2,1.24926447]
[1732249831660,2.0,3420.0,3418.2,0.78222202]
[1732249831855,0.2,3419.9,3418.3,0.2932]
[1732249832359,0.2,3419.9,3418.5,0.2932]
[1732249832557,0.8816,3419.7,3419.2,1.2932]
[1732249832791,0.8816,3419.7,3419.3,0.48902202]
[1732249833101,0.8816,3419.7,3419.2,1.2932]
[1732249833660,0.8816,3419.7,3419.2,1.00167]
[1732249834862,0.8816,3419.7,3419.2,0.70847]
[1732249835085,0.8816,3419.7,3418.0,0.2932]
[1732249835506,0.8816,3419.5,3418.0,0.2932]
[1732249835950,0.8816,3419.5,3417.5,0.2932]
[1732249836156,2.0,3420.0,3418.2,0.2932]
[1732249836451,0.8816,3419.9,3418.3,2.08651994]
[1732249837125,0.8816,3419.9,3418.7,0.2932]
[1732249838056,0.8816,3419.9,3418.2,0.2932]
[1732249838218,2.0,3420.0,3418.2,0.2932]
[1732249838219,0.8816,3419.7,3418.2,0.2932]
[1732249838553,0.28816,3419.8,3417.8,0.46981082]
[1732249838554,0.8816,3419.6,3417.9,0.2932]
[1732249838910,0.8816,3419.6,3416.6,1.216713]
[1732249838911,0.8816,3419.4,3417.1,0.45370912]
[1732249839110,0.8816,3419.4,3417.1,0.89351994]
[1732249839312,0.8816,3419.2,3417.2,0.46907122]
[1732249839528,0.8816,3419.2,3417.3,0.74690912]
[1732249839940,0.8816,3419.2,3417.2,0.2932]
[1732249840151,0.8816,3419.2,3417.2,1.18671994]
[1732249840465,0.8816,3419.2,3417.4,0.2932]
[1732249840665,0.8816,3419.2,3416.7,0.346913]
[1732249840666,0.8816,3419.2,3417.6,0.2932]
[1732249840894,0.8816,3419.2,3417.8,0.2932]
[1732249841227,0.8816,3419.2,3418.0,0.2932]
[1732249842285,0.8816,3419.2,3417.5,0.2932]
[1732249842468,0.8816,3419.2,3417.5,0.74690912]
[1732249842643,0.8796,3419.1,3416.8,0.45370912]
[1732249842847,0.8796,3418.7,3416.9,0.2932]
[1732249843158,3.01,3418.4,3415.9,0.45370912]
[1732249843377,2.9259,3417.8,3415.2,0.8766]
[1732249843678,2.9259,3417.8,3415.0,0.346913]
[1732249843679,0.8796,3417.3,3415.4,0.2932]
[1732249843882,0.8796,3417.3,3415.7,0.2932]
[1732249844038,0.8796,3417.9,3416.2,0.2932]
[1732249844251,0.8796,3417.9,3416.4,0.2932]
[1732249844453,0.8796,3417.9,3416.6,0.2932]
[1732249844654,0.8796,3417.9,3416.8,0.2932]
[1732249844841,0.8796,3419.6,3417.0,0.2932]
[1732249845077,2.9244,3419.5,3417.0,0.2932]
[1732249845383,0.8796,3419.4,3417.0,0.2932]
[1732249845602,0.8796,3419.4,3417.2,0.2932]
[1732249845881,0.8796,3419.4,3417.4,0.2932]
[1732249846185,0.8796,3419.4,3417.6,0.2932]
[1732249847169,0.8796,3419.4,3417.3,0.2932]
[1732249847387,0.8796,3419.4,3417.8,0.2932]
[1732249848401,0.8796,3419.4,3417.6,0.2932]
[1732249848896,0.8796,3419.4,3417.8,0.2932]
[1732249849195,0.8796,3419.4,3417.7,0.8766]
[1732249849584,0.8796,3419.4,3417.6,3.0]
[1732249849896,0.8796,3419.4,3417.7,0.20930913]
[1732249850102,0.8796,3419.4,3417.3,1.1698]
[1732249850276,0.8796,3419.4,3417.4,0.20928941]
[1732249850464,0.8796,3419.4,3417.6,0.2932]
[1732249851703,0.8796,3419.4,3417.4,0.2932]
[1732249851906,0.8796,3419.4,3417.6,3.2932]
[1732249852198,0.8796,3419.4,3417.6,0.2932]
[1732249852559,0.8796,3419.2,3416.8,1.1698]
[1732249852765,0.8796,3419.2,3416.9,0.02926577]
[1732249852966,0.8796,3419.2,3416.9,0.23875562]
[1732249853212,0.8796,3419.2,3417.0,0.20948985]
[1732249853399,0.8796,3419.2,3417.0,0.02926005]
[1732249854303,0.8796,3419.2,3416.8,1.19905792]
[1732249855098,0.8796,3419.2,3416.8,1.1698]
[1732249855894,0.8796,3419.2,3416.8,0.8766]
[1732249856097,0.8796,3419.2,3416.0,0.8766]
[1732249856098,0.8796,3418.6,3416.0,0.8766]
[1732249857036,0.8796,3418.4,3416.0,0.8766]
[1732249857242,0.01,3417.8,3415.2,0.8766]
[1732249857454,0.8896,3417.8,3415.1,0.8766]
[1732249857800,0.8796,3417.3,3414.7,0.8766]
[1732249858026,0.8796,3417.1,3414.8,0.2916]
[1732249858226,0.8796,3416.9,3414.9,0.02927909]
[1732249858498,0.02927268,3416.8,3415.0,0.72101746]
[1732249858717,0.8796,3416.7,3414.7,0.8766]
[1732249859020,0.8796,3416.7,3414.9,0.2916]
[1732249859021,0.02927268,3416.6,3414.9,0.2916]
[1732249859701,0.8796,3416.7,3415.0,0.2916]
[1732249860024,0.8796,3416.7,3415.3,0.2916]
[1732249860232,0.8796,3417.7,3415.3,1.13332828]
[1732249860413,0.02927268,3417.6,3415.5,0.2916]
[1732249860752,0.8796,3417.5,3415.5,0.2916]
[1732249860942,0.02927268,3417.4,3415.6,0.02926928]
[1732249861260,0.8796,3417.5,3415.8,0.2916]
[1732249861540,0.8796,3417.5,3415.9,0.0292663]
[1732249862621,0.8796,3417.5,3416.1,0.2916]
[1732249862933,0.8796,3417.5,3416.2,0.02926589]
[1732249863130,0.02927268,3417.4,3416.1,0.32086452]
[1732249863317,0.8796,3417.5,3416.1,0.2916]
[1732249863719,0.8796,3418.0,3416.4,0.2916]
[1732249863953,0.8796,3419.1,3416.7,0.2916]
[1732249864157,0.8796,3419.1,3416.0,0.02]
[1732249864158,0.02927268,3419.0,3417.0,0.2916]
[1732249864369,0.02927268,3419.0,3417.1,0.02925727]
[1732249864721,0.02927268,3419.0,3417.2,0.2916]
[1732249865248,0.8796,3419.1,3417.5,0.2916]
[1732249865432,0.8796,3419.1,3417.4,0.8766]
[1732249865433,0.8796,3419.8,3417.9,0.2916]
[1732249865818,0.8796,3419.8,3417.9,0.3208485]
[1732249865819,0.02927268,3419.7,3417.9,0.3208485]
[1732249865927,0.8796,3419.8,3418.1,0.2916]
[1732249866128,0.8796,3419.8,3418.3,0.2916]
[1732249866327,0.8796,3419.8,3418.6,0.2916]
[1732249866564,0.8796,3419.8,3418.6,0.3208456]
[1732249866781,0.02927268,3419.7,3418.6,0.72101746]
[1732249866930,0.02927268,3419.7,3418.6,0.2916]
[1732249867124,0.8796,3419.8,3418.6,0.2916]
[1732249867426,0.02927268,3419.7,3418.7,0.2916]
[1732249867850,0.8796,3419.8,3418.7,1.1682]
[1732249868381,0.8796,3420.2,3418.9,0.2916]
[1732249868577,0.8796,3420.2,3418.9,3.2916]
[1732249868803,2.28796,3420.0,3418.9,0.2916]
[1732249868954,0.02927268,3419.9,3418.9,0.2916]
[1732249869366,0.02927268,3419.9,3418.3,0.2916]
[1732249869587,0.34895595,3419.9,3418.4,0.02925011]
[1732249869774,0.27580395,3419.9,3418.5,0.2916]
[1732249870080,0.27580395,3419.9,3418.2,0.8766]
[1732249870081,2.0,3420.0,3418.7,0.2916]
[1732249870284,2.0,3420.0,3418.7,0.75026511]
[1732249870437,2.0,3420.0,3419.1,3.0]
[1732249870638,2.0,3420.0,3419.2,0.02924239]
[1732249871093,2.0,3420.0,3419.1,0.8766]
[1732249871576,2.28796,3420.0,3418.9,0.02924247]
[1732249871743,2.28796,3420.0,3418.7,0.2916]
[1732249871940,2.28796,3420.0,3418.6,0.8572]
[1732249871941,2.0,3420.0,3418.8,3.2916]
[1732249872171,2.0,3420.0,3418.8,0.2916]
[1732249872579,2.0,3420.0,3418.9,0.02924692]
[1732249872754,2.0,3420.0,3419.1,0.2916]
[1732249873080,2.0,3420.0,3419.2,0.84172828]
[1732249873287,2.0,3420.0,3419.1,0.2916]
[1732249873530,2.0,3420.0,3419.2,0.02924277]
[1732249873734,2.0,3420.0,3419.3,0.2916]
[1732249874735,2.0,3420.0,3418.5,0.8572]
[1732249874736,0.8963,3419.9,3418.6,0.2916]
[1732249874893,0.8963,3419.9,3418.7,0.02924893]
[1732249875403,1.98529486,3420.0,3418.9,0.2916]
[1732249875606,1.98529486,3420.0,3419.1,0.2916]
[1732249875908,1.98529486,3420.0,3419.2,0.02924075]
[1732249876215,1.98529486,3420.0,3419.3,1.1488]
[1732249876421,1.98529486,3420.0,3419.4,0.02923958]
[1732249876604,1.98529486,3420.0,3419.3,1.1488]
[1732249877018,1.98529486,3420.0,3419.3,0.2916]
[1732249877227,0.8963,3419.9,3419.4,0.2916]
[1732249877444,1.98529486,3420.0,3419.4,0.2916]
[1732249878218,1.98529486,3420.0,3419.4,3.0]
[1732249878418,1.98529486,3420.0,3419.1,0.2916]
[1732249878623,0.8963,3419.9,3419.1,0.2916]
[1732249879313,0.6049,3419.9,3418.7,0.2916]
[1732249879515,0.6049,3419.9,3418.8,0.02924674]
[1732249879726,0.6049,3419.9,3418.8,0.0292461]
[1732249879904,1.98529486,3420.0,3419.0,0.2916]
[1732249880104,1.98529486,3420.0,3419.1,0.02923936]
[1732249881742,1.98529486,3420.0,3419.0,0.2916]
[1732249881907,1.98529486,3420.0,3419.0,0.32084425]
[1732249883013,1.98529486,3420.0,3419.4,0.2916]
[1732249884119,1.98529486,3420.0,3418.6,0.2916]
[1732249884120,0.8963,3419.9,3418.6,0.2916]
[1732249884349,0.8963,3419.9,3417.6,0.2916]
[1732249884557,0.8963,3419.7,3417.6,0.2916]
[1732249885045,0.8963,3419.7,3417.7,0.2916]
[1732249885544,0.8963,3419.7,3417.7,0.217499]
[1732249885752,0.8963,3419.5,3416.5,0.38647748]
[1732249885909,3.38424744,3419.6,3416.6,0.2916]
[1732249885910,0.8963,3419.3,3416.6,0.2916]
[1732249886109,0.8963,3419.3,3416.8,0.2916]
[1732249886306,0.8963,3419.3,3416.1,0.8572]
[1732249886307,0.8963,3419.3,3417.0,0.2916]
[1732249886507,0.8963,3419.3,3417.2,0.2916]
[1732249886826,1.07245113,3419.2,3417.4,0.2916]
[1732249887060,0.8963,3419.2,3417.6,0.2916]
[1732249887349,0.8963,3419.2,3417.8,0.2916]
[1732249888425,0.8963,3419.2,3417.4,0.32085585]
[1732249888611,0.8963,3419.2,3417.4,0.2916]
[1732249888948,0.8963,3419.2,3417.6,0.2916]
[1732249889143,0.8963,3419.2,3417.6,0.67807748]
[1732249889353,0.8963,3419.2,3417.6,0.2916]
[1732249890044,0.8963,3419.2,3416.9,0.32085893]
[1732249890255,0.8963,3419.2,3417.6,0.2916]
[1732249890808,0.8963,3419.2,3417.5,0.38647748]
[1732249890809,0.8963,3419.2,3418.2,0.2916]
[1732249891814,1.98529486,3420.0,3418.6,0.2916]
[1732249892196,1.98529486,3420.0,3419.2,0.2916]
[1732249892471,1.98529486,3420.0,3419.5,0.2916]
[1732249893065,1.98529486,3420.0,3419.7,0.2916]
[1732249893265,0.9124,3419.9,3419.1,0.38647748]
[1732249893480,0.9124,3419.9,3418.0,11.48]
[1732249893630,0.9124,3419.9,3417.3,0.9055]
[1732249893631,0.9124,3419.7,3417.3,0.9055]
[1732249893923,0.9124,3419.7,3416.1,0.01]
[1732249893924,0.9124,3419.7,3416.2,1.25675329]
[1732249894129,0.9124,3419.7,3416.1,0.3678689]
[1732249894130,0.9124,3419.7,3416.9,0.9055]
[1732249894363,0.9124,3419.6,3417.0,1.01071895]
[1732249894670,0.9124,3419.6,3417.0,0.6721074]
[1732249894829,0.9124,3419.6,3417.0,0.2916]
[1732249895728,0.9224,3419.6,3417.1,0.2916]
[1732249896377,0.9124,3419.4,3417.3,0.2916]
[1732249896582,0.9124,3419.4,3417.3,0.2616]
[1732249897330,0.9224,3419.4,3416.6,0.26086074]
[1732249897530,0.01,3419.1,3416.6,0.2316]
[1732249897853,0.9124,3419.0,3416.6,0.2316]
[1732249898162,0.9124,3419.0,3416.3,0.9055]
[1732249898163,0.9124,3419.0,3416.8,0.2316]
[1732249898927,0.9124,3419.0,3416.8,0.92146484]
[1732249899128,0.9124,3419.0,3416.8,0.58285329]
[1732249899373,0.9124,3419.0,3416.9,0.26086251]
[1732249899537,0.9124,3419.0,3417.1,0.2316]
[1732249899746,0.9124,3419.0,3417.1,0.26085815]
[1732249900083,0.9124,3419.0,3417.1,0.2316]
[1732249900240,0.9124,3419.0,3417.1,0.26085815]
[1732249900544,0.9124,3419.0,3417.3,0.2316]
[1732249900741,0.9195,3419.5,3417.6,0.2316]
[1732249901045,2.90479486,3420.0,3417.9,0.2316]
[1732249901239,2.90479486,3420.0,3418.1,0.2416]
[1732249901542,2.90479486,3420.0,3418.4,0.2316]
[1732249901777,2.90479486,3420.0,3418.3,0.8642]
[1732249901778,2.90479486,3420.0,3418.6,0.2316]
[1732249902102,2.90479486,3420.0,3418.7,0.02924033]
[1732249902375,2.90479486,3420.0,3419.5,0.55]
[1732249902789,1.98529486,3420.0,3419.5,0.55]
[1732249903337,1.98529486,3420.0,3418.7,0.02924034]
[1732249905083,1.98529486,3420.0,3418.9,0.7816]
[1732249905287,1.98529486,3420.0,3419.0,0.02924205]
[1732249905443,1.98529486,3420.0,3419.3,3.0]
[1732249905783,1.98529486,3420.0,3419.4,0.2316]
[1732249906576,1.98529486,3420.0,3419.2,0.2316]
[1732249906787,2.27512435,3420.0,3419.2,0.2316]
[1732249906986,0.913,3419.9,3418.4,0.2916]
[1732249907610,0.913,3419.9,3417.9,0.2916]
[1732249907756,0.913,3419.7,3418.0,0.02925196]
[1732249908573,0.913,3419.7,3418.2,0.2916]
[1732249909605,1.98529486,3420.0,3418.5,0.2916]
[1732249909814,1.98529486,3420.0,3418.7,0.2916]
[1732249909997,1.98529486,3420.0,3418.8,0.02924281]
[1732249910179,1.98529486,3420.0,3419.0,0.2916]
[1732249910506,1.98529486,3420.0,3419.4,0.2916]
[1732249910671,1.98529486,3420.0,3419.6,0.2916]
[1732249910875,1.98529486,3420.0,3419.9,0.6416]
[1732249911111,1.98529486,3420.0,3419.9,0.0916]
[1732249911991,1.98529486,3420.0,3419.4,0.12083902]
[1732249912309,1.98529486,3420.0,3419.6,0.0916]
[1732249913364,1.98529486,3420.0,3419.9,0.6416]
[1732249920343,1.98529486,3420.0,3419.6,0.0916]
[1732249921240,2.26951435,3420.0,3419.6,0.0916]
[1732249921440,2.26951435,3420.0,3418.9,0.0916]
[1732249921642,1.98529486,3420.0,3418.9,0.0916]
[1732249922317,0.8569,3419.9,3419.0,0.0916]
[1732249922617,0.8569,3419.8,3419.0,0.0916]
[1732249923001,0.8569,3419.8,3417.7,0.2916]
[1732249923401,0.8569,3419.8,3417.9,0.2916]
[1732249923623,0.8569,3419.8,3418.0,0.02925291]
[1732249923624,1.16954144,3419.8,3418.0,0.02925291]
[1732249923927,0.8569,3419.7,3417.9,0.2916]
[1732249924448,0.8569,3419.7,3417.8,0.2916]
[1732249924653,0.8569,3419.7,3417.8,0.32085468]
[1732249924853,0.8569,3419.7,3418.0,0.2916]
[1732249925024,0.8569,3419.7,3418.0,3.2916]
[1732249925227,0.8569,3419.7,3418.0,0.2916]
[1732249925657,1.17238363,3419.7,3418.0,0.2916]
[1732249925861,0.8569,3419.7,3418.1,1.53180419]
[1732249926025,0.8569,3419.7,3418.1,1.87041574]
[1732249926232,0.8569,3419.7,3418.1,1.2030509]
[1732249926544,1.98529486,3420.0,3418.3,0.2916]
[1732249926880,1.98529486,3420.0,3418.4,0.02924036]
[1732249927178,1.98529486,3420.0,3418.5,0.2916]
[1732249927330,1.98529486,3420.0,3419.2,3.0]
[1732249927529,1.98529486,3420.0,3419.3,0.2916]
[1732249928432,1.98529486,3420.0,3419.1,0.2916]
[1732249928864,1.98529486,3420.0,3419.2,0.02924199]
[1732249929669,1.98529486,3420.0,3419.9,0.2916]
[1732249930673,1.98529486,3420.0,3419.1,0.2916]
[1732249930872,1.98529486,3420.0,3418.6,0.02923981]
[1732249930873,1.28540086,3420.0,3419.9,0.73914313]
[1732249931028,1.28540086,3420.0,3419.9,1.66973504]
[1732249931228,1.28540086,3420.0,3419.9,1.64050197]
[1732249931461,1.28540086,3420.0,3419.9,0.2916]
[1732249931971,1.28540086,3420.0,3419.7,0.32083758]
[1732249932132,1.28540086,3420.0,3419.9,1.56610329]
[1732249932551,1.28540086,3420.0,3419.9,1.1796]
[1732249932752,1.28540086,3420.0,3419.9,1.56610329]
[1732249932957,1.28540086,3420.0,3419.9,1.59533916]
[1732249933165,1.28540086,3420.0,3419.9,1.56610329]
[1732249933800,1.28540086,3420.0,3419.9,1.59533656]
[1732249934204,1.28540086,3420.0,3419.9,1.56610329]
[1732249934508,1.23540086,3420.0,3419.9,1.59533549]
[1732249935114,1.23540086,3420.0,3419.8,0.2916]
[1732249936173,1.23540086,3420.0,3419.5,0.888]